bitfinex/quotes_ETHUSD_20240718
["timestamp","ask_amount","ask_price","bid_price","bid_amount"]
[1721293983291,0.84451518,3457.6,3457.1,2.89258]
[1721293983292,0.84451518,3457.6,3457.2,0.55]
[1721293983505,0.84451518,3457.6,3457.3,0.16862878]
[1721293983706,0.84451518,3457.6,3457.4,0.55]
[1721293984026,0.84451518,3457.6,3457.2,0.55]
[1721293984234,4.10488103,3457.7,3457.2,0.55]
[1721293984451,0.84451509,3457.6,3457.2,0.55]
[1721293984600,0.84451509,3457.6,3457.3,0.16862878]
[1721293984927,0.84451509,3457.6,3457.1,2.89258]
[1721293984928,0.84451509,3457.6,3457.4,0.55]
[1721293985127,0.84451509,3457.6,3457.2,0.55]
[1721293985425,0.84451509,3457.6,3457.3,0.16862878]
[1721293985618,0.84451509,3457.6,3457.4,0.55]
[1721293986125,0.84451509,3457.6,3457.5,0.16862878]
[1721293986305,0.84451509,3457.6,3457.5,1.07973266]
[1721293986507,1.21277103,3458.0,3457.5,1.07973266]
[1721293986820,2.2725,3457.8,3457.6,0.55]
[1721293987131,0.84443177,3457.7,3457.6,0.55]
[1721293987427,0.84447427,3457.7,3457.6,0.55]
[1721293987630,0.84447427,3457.7,3457.3,0.55]
[1721293987831,2.0572453,3457.7,3457.6,0.16862878]
[1721293988008,2.0572453,3457.7,3457.6,0.55]
[1721293988212,2.0572453,3457.7,3457.6,0.71862878]
[1721293990304,4.9493353,3457.7,3457.6,0.71862878]
[1721293990503,4.94936653,3457.7,3457.6,0.55]
[1721293991234,3.7365955,3457.7,3457.6,0.55]
[1721293992534,5.25370109,3457.7,3457.6,0.55]
[1721293992737,5.25370109,3457.7,3457.6,0.16302302]
[1721293992912,5.25370109,3457.7,3457.6,0.55]
[1721293993112,5.25370109,3457.7,3457.6,0.71302302]
[1721293993335,2.36161109,3457.7,3457.6,0.71302302]
[1721293993535,2.05887264,3457.7,3457.6,0.71302302]
[1721293993731,2.05880881,3457.7,3457.6,0.55]
[1721293993934,2.05880881,3457.7,3457.3,2.89242]
[1721293993935,2.05880881,3457.7,3457.4,0.55]
[1721293994245,0.84444167,3457.6,3457.4,0.55]
[1721293994944,1.21436714,3457.7,3457.5,0.16302302]
[1721293995148,4.41003193,3457.8,3457.6,0.55]
[1721293995350,2.36247911,3457.7,3457.6,0.55]
[1721293995515,3.58984446,3457.7,3457.3,0.55]
[1721293995725,1.21442956,3457.5,3457.3,0.55]
[1721293995930,0.84448718,3457.4,3457.3,0.55]
[1721293996947,1.21442956,3457.5,3457.3,0.55]
[1721293997134,0.84450384,3457.4,3457.3,0.55]
[1721293998395,5.59819232,3457.4,3457.3,0.16302302]
[1721293998537,10.17010606,3457.4,3457.3,0.16302302]
[1721293998741,2.89284,3456.9,3456.3,2.3946]
[1721293998941,1.21474832,3456.7,3456.4,0.15222173]
[1721293999179,0.84450384,3456.6,3456.4,0.15222173]
[1721293999537,0.84450384,3456.5,3456.4,0.15222173]
[1721293999867,0.84450384,3456.7,3456.4,0.15222173]
[1721294000062,0.84471658,3456.6,3456.4,0.15222173]
[1721294000264,1.21474832,3456.8,3456.5,0.55]
[1721294000455,0.8447155,3456.7,3456.5,0.55]
[1721294000652,0.8447155,3456.7,3456.6,0.14691191]
[1721294000860,0.8447155,3456.7,3456.6,0.69691191]
[1721294001364,0.84472387,3456.7,3456.6,0.69691191]
[1721294003370,0.84473874,3456.7,3456.6,0.69691191]
[1721294003565,10.01988666,3456.7,3456.6,0.14691191]
[1721294003768,11.82868829,3456.7,3456.6,0.14691191]
[1721294003962,2.89325,3456.4,3455.7,2.89375]
[1721294004272,0.84473874,3456.3,3455.7,2.89375]
[1721294004437,0.84473874,3456.3,3455.8,0.14705645]
[1721294004637,3.73801874,3456.3,3455.8,0.14705645]
[1721294004863,0.84473874,3456.2,3455.9,0.55]
[1721294005075,0.84473874,3456.2,3455.9,0.14705645]
[1721294005235,0.84473874,3456.2,3455.8,0.55]
[1721294005236,0.84473874,3456.2,3456.0,0.55]
[1721294005443,0.84473874,3456.2,3455.8,0.55]
[1721294006371,2.89328,3456.3,3455.7,0.55]
[1721294006553,2.89328,3456.3,3455.9,0.14705645]
[1721294006748,3.59331666,3456.3,3456.0,0.55]
[1721294006949,2.89339,3456.2,3456.1,0.14705645]
[1721294007263,2.89339,3456.2,3454.9,2.367]
[1721294007264,2.89389,3455.6,3454.9,2.367]
[1721294007574,2.89391,3455.6,3454.9,5.26143]
[1721294007746,5.78784,3455.6,3455.0,0.14718947]
[1721294008255,2.89394,3455.5,3455.0,0.14718947]
[1721294008877,2.89394,3455.5,3455.1,0.55]
[1721294009273,2.89394,3455.5,3455.2,0.14734277]
[1721294009451,3.718425,3455.5,3455.3,0.55]
[1721294010941,2.89402,3455.4,3455.3,0.55]
[1721294012852,2.89402,3455.4,3455.3,0.69799337]
[1721294013173,2.89394,3455.5,3455.3,0.69799337]
[1721294013370,2.89391,3455.6,3455.3,0.69799337]
[1721294013672,2.89391,3455.6,3455.3,0.55]
[1721294013881,2.89391,3455.6,3455.4,0.14799337]
[1721294014044,2.89391,3455.6,3455.5,0.55]
[1721294014582,2.89391,3455.6,3455.5,0.69799337]
[1721294014782,3.472671,3455.6,3455.5,0.69799337]
[1721294014981,3.472671,3455.6,3455.5,0.55]
[1721294015777,5.755271,3455.6,3455.5,0.55]
[1721294017879,3.472671,3455.6,3455.5,0.55]
[1721294018180,2.89391,3455.6,3455.5,0.55]
[1721294018591,2.89391,3455.6,3455.5,0.69808885]
[1721294022484,5.78782,3455.6,3455.5,0.69808885]
[1721294022689,5.78782,3455.6,3455.5,0.14808885]
[1721294023063,2.89405,3455.4,3454.8,5.2776]
[1721294023268,2.89405,3455.4,3454.9,0.55]
[1721294024189,2.89408,3455.4,3454.9,0.55]
[1721294024486,2.89408,3455.4,3454.8,0.55]
[1721294027084,5.78817,3455.4,3454.8,0.55]
[1721294027858,2.89412,3455.3,3454.8,0.55]
[1721294028758,2.89388,3455.6,3454.8,0.55]
[1721294028961,2.89403,3455.4,3455.0,2.4838]
[1721294029281,2.89403,3455.4,3455.1,0.55]
[1721294029682,2.89395,3455.5,3455.1,0.55]
[1721294029877,2.89384,3455.7,3455.1,0.55]
[1721294030087,2.89385,3455.6,3455.1,0.55]
[1721294030290,2.89385,3455.6,3455.2,0.6272687]
[1721294030471,2.89385,3455.6,3455.3,0.55]
[1721294030671,2.89373,3455.8,3455.4,2.2934]
[1721294030887,2.89373,3455.8,3455.5,0.55]
[1721294031661,5.78749,3455.8,3455.5,0.55]
[1721294032092,2.89377,3455.7,3455.5,0.55]
[1721294032277,2.89377,3455.7,3455.1,5.16974]
[1721294032278,2.89377,3455.7,3455.2,0.55]
[1721294032767,2.89395,3455.5,3455.3,0.14805703]
[1721294032973,2.89395,3455.5,3455.4,0.55]
[1721294033174,2.89395,3455.5,3455.4,0.69805703]
[1721294033388,3.19563226,3455.5,3455.4,0.69805703]
[1721294039800,3.19563226,3455.5,3455.4,0.55]
[1721294043689,5.60183226,3455.5,3455.4,0.55]
[1721294044439,6.44692914,3455.5,3455.4,0.55]
[1721294045077,4.04072914,3455.5,3455.4,0.55]
[1721294045304,3.19563226,3455.5,3455.4,0.55]
[1721294045488,0.30168226,3455.5,3455.4,0.55]
[1721294045676,0.30168226,3455.5,3455.4,2.3179]
[1721294045876,0.30168226,3455.5,3455.4,0.55]
[1721294046082,0.30168226,3455.5,3455.4,0.69812067]
[1721294047605,4.04065258,3455.5,3455.4,0.69812067]
[1721294049547,4.04066085,3455.5,3455.4,0.69812067]
[1721294049683,4.04066085,3455.5,3455.4,0.55]
[1721294049880,4.04065189,3455.5,3455.2,0.55]
[1721294050084,0.84504874,3455.4,3455.2,0.55]
[1721294050319,0.84504874,3455.4,3455.3,0.14812067]
[1721294050608,0.84504874,3455.4,3455.3,0.55]
[1721294050911,0.84504874,3455.4,3455.3,0.69812067]
[1721294053212,0.8450384,3455.4,3455.3,0.69812067]
[1721294056281,1.51418128,3455.5,3455.3,0.69812067]
[1721294056486,0.84503696,3455.4,3455.3,0.69812067]
[1721294058914,2.05753598,3455.4,3455.3,0.69812067]
[1721294059508,2.05754546,3455.4,3455.3,0.69812067]
[1721294061220,3.33154644,3455.4,3455.3,0.69812067]
[1721294061420,4.851459,3455.4,3455.3,0.69812067]
[1721294061826,4.85167053,3455.4,3455.3,0.69812067]
[1721294062823,4.00648657,3455.4,3455.3,0.69812067]
[1721294063126,2.36509464,3455.4,3455.3,0.69812067]
[1721294063817,5.25911464,3455.4,3455.3,0.69812067]
[1721294064126,2.36509464,3455.4,3455.3,0.69812067]
[1721294065833,6.08961226,3455.5,3455.3,0.69812067]
[1721294066014,2.36509062,3455.4,3455.3,0.69812067]
[1721294066325,5.25911062,3455.4,3455.3,0.69812067]
[1721294067323,3.73912743,3455.4,3455.3,0.69812067]
[1721294067504,5.25911062,3455.4,3455.3,0.69812067]
[1721294069105,4.41395738,3455.4,3455.3,0.69812067]
[1721294069300,5.25905893,3455.4,3455.3,0.69812067]
[1721294070133,3.73912155,3455.4,3455.3,0.69812067]
[1721294070320,4.86449742,3455.4,3455.3,0.55]
[1721294071139,7.75851742,3455.4,3455.3,0.55]
[1721294071500,9.58234956,3455.4,3455.3,0.55]
[1721294071706,7.75851742,3455.4,3455.3,0.55]
[1721294071906,9.58235799,3455.4,3455.3,0.55]
[1721294072407,9.58248078,3455.4,3455.3,0.55]
[1721294075304,7.75864157,3455.4,3455.3,0.55]
[1721294075540,7.75863995,3455.4,3455.3,0.55]
[1721294078612,7.75861679,3455.4,3455.3,0.55]
[1721294080036,9.27740668,3455.4,3455.3,0.55]
[1721294081212,7.75861679,3455.4,3455.3,0.55]
[1721294081826,7.75862305,3455.4,3455.3,0.55]
[1721294083020,2.89417,3455.3,3455.1,0.55]
[1721294083251,3.73938718,3455.2,3455.1,0.55]
[1721294083627,4.95425059,3455.2,3455.1,0.55]
[1721294084027,2.89434,3455.1,3454.9,0.55]
[1721294084246,0.84520718,3455.0,3454.9,0.55]
[1721294084631,1.14732551,3455.0,3454.9,0.55]
[1721294085037,1.14731879,3455.0,3454.9,0.55]
[1721294088231,1.14728159,3455.0,3454.9,0.55]
[1721294089160,4.04163159,3455.0,3454.9,0.55]
[1721294092664,4.04163159,3455.0,3454.9,0.6983406]
[1721294093379,10.20219798,3455.0,3454.9,0.1483406]
[1721294093736,10.20219798,3455.0,3454.0,3.1053]
[1721294093737,2.89477,3454.5,3454.0,3.1053]
[1721294093946,0.84516326,3454.4,3454.0,3.1053]
[1721294094150,5.79004,3454.2,3454.1,0.14833482]
[1721294094361,5.79004,3454.2,3453.3,0.821]
[1721294094362,7.85026162,3454.2,3453.3,0.821]
[1721294094680,7.85026162,3454.2,3453.4,0.14833482]
[1721294094681,5.79104,3453.7,3453.4,0.14833482]
[1721294094830,2.89553,3453.6,3453.4,0.14833482]
[1721294095034,2.89552,3453.7,3453.5,0.821]
[1721294096389,5.79064,3453.9,3453.5,0.821]
[1721294096536,2.89538,3453.8,3453.5,0.821]
[1721294096736,2.89519,3454.0,3453.5,0.821]
[1721294096938,3.74082104,3453.9,3453.6,0.14833482]
[1721294097221,2.89532,3453.9,3453.6,0.14833482]
[1721294097431,2.89532,3453.9,3453.7,1.371]
[1721294097575,2.89519,3454.0,3453.8,0.14867935]
[1721294097772,2.89519,3454.0,3453.9,1.371]
[1721294098024,3.74067914,3454.0,3453.9,1.371]
[1721294098217,0.30198417,3454.1,3453.9,1.51967935]
[1721294098818,0.30198417,3454.1,3453.9,1.96119729]
[1721294099005,0.30198417,3454.1,3453.9,0.69867935]
[1721294099220,0.30198417,3454.1,3454.0,0.821]
[1721294099523,0.30198417,3454.1,3454.0,1.371]
[1721294099728,0.30198417,3454.1,3454.0,1.51967935]
[1721294100678,0.30198417,3454.1,3454.0,0.69867935]
[1721294100911,0.30198417,3454.1,3452.6,8.0921251]
[1721294100912,2.89537,3453.8,3453.3,0.821]
[1721294101380,2.89537,3453.8,3453.1,2.89591]
[1721294101667,2.89569,3453.4,3452.5,3.35028051]
[1721294101870,5.79156,3453.3,3452.9,0.821]
[1721294102014,5.79156,3453.3,3452.4,5.24063]
[1721294102015,6.370716,3453.3,3452.4,5.24063]
[1721294102212,8.767316,3453.3,3452.0,7.49]
[1721294102413,13.82812326,3453.3,3452.3,0.821]
[1721294102641,13.82812326,3453.3,3452.0,10.38685]
[1721294102642,10.2164649,3453.3,3452.7,0.821]
[1721294103329,10.21647192,3453.3,3452.7,0.821]
[1721294103634,9.370716,3453.3,3452.7,0.821]
[1721294104061,9.370716,3453.3,3452.6,0.821]
[1721294104247,9.370716,3453.3,3452.0,7.49]
[1721294104248,15.61147994,3453.3,3452.0,7.49]
[1721294105075,16.8223424,3453.3,3452.0,7.49]
[1721294105361,16.8223424,3453.3,3451.8,2.89703]
[1721294105362,17.12386305,3453.3,3451.9,2.89693]
[1721294105547,15.06721665,3453.3,3452.0,0.05793142]
[1721294105731,12.17143665,3453.3,3452.0,2.89685]
[1721294106360,9.67223665,3453.3,3452.0,2.89685]
[1721294106569,9.67223665,3453.3,3452.2,5.25364]
[1721294107066,9.67223665,3453.3,3452.0,2.89685]
[1721294107423,9.67223665,3453.3,3452.1,2.89678]
[1721294107932,9.67223665,3453.3,3452.2,2.89668]
[1721294108660,9.67223665,3453.3,3452.4,2.89646]
[1721294108661,6.77645665,3453.3,3452.4,2.89646]
[1721294108844,6.19730065,3453.3,3452.4,2.89646]
[1721294109222,3.30152065,3453.3,3453.2,0.6980169]
[1721294110349,0.30152065,3453.3,3453.2,0.6980169]
[1721294110852,0.30152065,3453.3,3453.2,0.84225501]
[1721294112071,0.30152065,3453.3,3453.2,3.73811501]
[1721294113575,0.30152065,3453.3,3453.2,0.84225501]
[1721294115034,6.41278671,3453.3,3453.2,0.29225501]
[1721294115240,6.41278671,3453.3,3453.2,0.1480169]
[1721294115437,9.41278671,3453.3,3453.2,0.1480169]
[1721294117142,3.62122671,3453.3,3453.2,0.1480169]
[1721294117337,6.19730065,3453.3,3453.2,0.1480169]
[1721294117664,3.30152065,3453.3,3453.2,0.83765311]
[1721294120339,0.30152065,3453.3,3453.2,0.83765311]
[1721294123441,0.30152065,3453.3,3453.2,3.73351311]
[1721294123797,2.89501,3454.3,3453.6,2.89544]
[1721294123798,7.36,3454.3,3453.6,2.89544]
[1721294123952,7.36,3454.3,3453.2,0.83765311]
[1721294123953,7.36,3454.3,3453.7,3.44538]
[1721294124136,7.66136241,3454.3,3453.9,2.89525]
[1721294124340,7.66136241,3454.3,3454.0,0.55]
[1721294124557,0.30136241,3454.3,3454.0,0.55]
[1721294124772,0.30136241,3454.3,3454.1,0.13963621]
[1721294124975,0.30136241,3454.3,3454.2,0.55]
[1721294125276,0.30136241,3454.3,3454.2,0.68947981]
[1721294125482,3.80539565,3454.3,3453.4,2.89564]
[1721294125775,3.80539565,3454.3,3453.5,0.55]
[1721294125776,2.89511,3454.1,3453.5,0.55]
[1721294126071,2.89511,3454.1,3453.5,0.68947981]
[1721294127161,2.8953,3453.9,3453.5,0.68947981]
[1721294127357,3.474341,3453.9,3453.5,0.68947981]
[1721294127564,0.579041,3453.9,3453.5,0.68947981]
[1721294127760,0.30136241,3454.3,3453.5,0.68947981]
[1721294127761,2.89527,3454.0,3453.5,0.68947981]
[1721294127973,2.89533,3453.9,3453.5,0.68947981]
[1721294128366,2.89536,3453.8,3453.5,0.68947981]
[1721294128548,0.289536,3453.7,3453.5,0.68947981]
[1721294128940,2.89552,3453.6,3453.5,0.68947981]
[1721294129166,2.89552,3453.6,3453.5,0.55]
[1721294129368,2.89552,3453.6,3453.3,0.55]
[1721294129569,2.89552,3453.6,3453.5,0.13942477]
[1721294129870,3.5035616,3453.6,3453.5,0.55]
[1721294130376,2.89562,3453.5,3453.3,0.55]
[1721294132700,2.89569,3453.4,3453.3,0.55]
[1721294134480,3.19678518,3453.4,3453.3,0.55]
[1721294136071,0.30109518,3453.4,3453.3,0.55]
[1721294136874,3.19678518,3453.4,3453.3,0.55]
[1721294137076,3.8349793,3453.4,3453.3,0.55]
[1721294137776,3.8349793,3453.4,3453.3,0.74097683]
[1721294138364,4.68070603,3453.4,3453.3,0.74097683]
[1721294138569,4.68070603,3453.4,3453.3,0.55]
[1721294139590,1.14682191,3453.4,3453.3,0.55]
[1721294139970,1.14682191,3453.4,3453.3,0.74104058]
[1721294140171,0.30109518,3453.4,3453.3,0.74104058]
[1721294142280,1.14671463,3453.4,3453.3,0.74104058]
[1721294142564,1.14671463,3453.4,3453.3,6.10182058]
[1721294142565,0.30109518,3453.4,3453.3,6.10182058]
[1721294142788,0.30109518,3453.4,3453.3,6.72680433]
[1721294143886,0.30109518,3453.4,3453.3,9.62258433]
[1721294144103,13.95018779,3454.7,3453.3,9.62258433]
[1721294144104,1.21086246,3454.6,3453.8,2.4775]
[1721294144304,16.54144316,3454.7,3453.9,3.44521]
[1721294144305,1.21086246,3454.7,3453.9,3.44521]
[1721294144596,7.66189705,3455.0,3453.9,3.44521]
[1721294144597,8.57086246,3455.0,3454.2,1.974]
[1721294144785,8.57086246,3455.0,3454.5,2.8947]
[1721294144786,0.30111111,3454.6,3454.5,2.8947]
[1721294144974,7.36,3455.0,3454.6,2.89461]
[1721294145174,2.93,3455.1,3454.5,2.8947]
[1721294145175,2.93,3455.1,3454.7,2.89457]
[1721294145374,2.93,3455.1,3454.8,0.55]
[1721294145375,0.30120673,3455.0,3454.8,0.55]
[1721294145585,0.30120673,3455.0,3454.8,0.73426588]
[1721294145999,0.30120673,3455.0,3454.8,4.25374963]
[1721294146202,0.30120673,3455.0,3454.9,2.89443]
[1721294146405,2.93,3455.1,3455.0,2.89435]
[1721294146604,2.93,3455.1,3455.0,5.41835]
[1721294146974,2.93,3455.1,3455.0,5.60246243]
[1721294147170,2.93,3455.1,3455.0,6.08065963]
[1721294147905,1.21086246,3456.2,3455.4,2.89399]
[1721294148108,14.3834,3456.9,3455.4,2.89399]
[1721294148109,8.57086246,3457.0,3456.1,2.8934]
[1721294148402,4.07180762,3457.4,3456.2,3.44334]
[1721294148403,8.07576,3457.4,3456.2,3.44334]
[1721294148606,0.30124473,3456.9,3456.7,2.89292]
[1721294148773,2.93,3457.4,3456.9,2.8927]
[1721294148972,2.93,3457.4,3457.0,0.05785055]
[1721294148973,3.23123053,3457.4,3457.0,0.05785055]
[1721294149174,0.30123053,3457.4,3457.3,2.89243]
[1721294149517,7.36,3458.4,3457.7,2.89202]
[1721294149673,0.30178114,3458.8,3457.5,2.89222]
[1721294149674,0.30122643,3458.1,3457.5,2.89222]
[1721294150007,0.30122643,3458.1,3457.1,1.974]
[1721294150008,0.30122643,3458.1,3457.6,0.73353378]
[1721294150303,3.19299643,3458.1,3457.6,0.73353378]
[1721294150886,2.89188,3458.0,3457.6,0.73353378]
[1721294151084,3.50036764,3458.0,3457.6,0.73353378]
[1721294151275,2.89195,3457.9,3457.6,0.73353378]
[1721294152313,2.89209,3457.7,3456.7,1.974]
[1721294152508,2.8923,3457.5,3456.6,2.89297]
[1721294152704,2.89259,3457.2,3456.3,4.86722]
[1721294152976,2.8926,3457.1,3456.7,0.18201794]
[1721294153285,2.89197,3457.9,3455.6,2.89383]
[1721294153286,2.89308,3456.6,3455.6,2.89383]
[1721294153704,2.89308,3456.6,3455.8,2.89367]
[1721294154528,5.3976,3457.1,3455.8,2.89367]
[1721294154529,2.89269,3457.0,3456.0,2.8935]
[1721294154725,3.0,3456.9,3456.0,2.8935]
[1721294154922,3.49284,3456.8,3455.9,2.89359]
[1721294155734,3.49284,3456.8,3456.0,2.89351]
[1721294155939,3.49284,3456.8,3456.1,0.55]
[1721294156131,2.89268,3457.0,3456.1,0.55]
[1721294156332,5.89278,3456.9,3456.1,0.55]
[1721294156535,3.0,3456.8,3456.1,0.55]
[1721294156734,5.89285,3456.8,3456.1,0.55]
[1721294157339,5.89285,3456.8,3456.1,3.44338]
[1721294157340,3.0,3456.8,3456.1,3.44338]
[1721294157520,3.0,3456.9,3456.1,0.55]
[1721294157905,3.0,3456.9,3456.2,2.89333]
[1721294158105,4.61452,3456.9,3456.3,0.55]
[1721294159406,7.50731,3456.9,3456.3,0.55]
[1721294159610,7.50731,3456.9,3456.1,3.44343]
[1721294159811,4.61452,3456.9,3456.2,2.89334]
[1721294160139,3.30129885,3456.8,3456.3,0.55]
[1721294160317,4.27499873,3456.8,3456.3,0.55]
[1721294160518,2.89302,3456.6,3456.3,0.55]
[1721294160718,2.89302,3456.6,3456.4,0.18201794]
[1721294161048,1.38214873,3456.8,3456.5,0.55]
[1721294161266,3.30129885,3456.8,3456.2,3.44334]
[1721294161575,0.30129885,3456.8,3456.3,2.89325]
[1721294161712,0.30129885,3456.8,3456.5,2.89303]
[1721294162042,0.30129885,3456.8,3456.6,0.55]
[1721294162240,0.30129885,3456.8,3456.6,0.73260474]
[1721294162439,0.30129885,3456.8,3456.6,1.38449221]
[1721294162642,0.30129885,3456.8,3456.7,5.78586]
[1721294162954,7.36,3457.7,3457.0,2.89263]
[1721294163159,0.3012863,3457.4,3457.0,2.89263]
[1721294163328,0.3012863,3457.4,3457.1,0.55]
[1721294163514,0.3012863,3457.4,3457.3,2.89243]
[1721294163714,0.3012863,3457.4,3457.3,3.44243]
[1721294163913,0.3012863,3457.4,3457.3,3.62503474]
[1721294165743,0.3012863,3457.4,3457.3,0.73260474]
[1721294165942,0.3012863,3457.4,3457.3,3.62503474]
[1721294167755,0.3012863,3457.4,3457.3,0.73260474]
[1721294169963,0.3012863,3457.4,3457.3,1.18389822]
[1721294170442,0.3012863,3457.4,3457.3,4.07632822]
[1721294171313,0.3012863,3457.4,3457.3,3.62503474]
[1721294171514,0.26539589,3457.4,3457.3,0.73260474]
[1721294171717,2.89179,3458.1,3457.3,0.73260474]
[1721294171910,2.89179,3458.1,3457.4,0.55]
[1721294172400,2.89179,3458.1,3457.5,0.17616611]
[1721294172511,2.89189,3458.0,3457.6,0.55]
[1721294172716,2.89195,3457.9,3457.6,0.55]
[1721294173025,2.89209,3457.7,3457.6,0.55]
[1721294175727,2.89195,3457.9,3457.6,0.55]
[1721294176329,2.89201,3457.8,3457.6,0.55]
[1721294177457,0.30099397,3457.9,3457.3,0.55]
[1721294177663,0.30099397,3457.9,3457.3,1.183507]
[1721294177864,2.93,3458.5,3458.1,2.89173]
[1721294178031,2.89111,3458.9,3458.2,2.518]
[1721294178229,2.8912,3458.8,3458.2,2.518]
[1721294178538,3.19208117,3458.8,3458.2,2.518]
[1721294179368,0.30088117,3458.8,3458.2,2.518]
[1721294179659,0.30088117,3458.8,3458.2,5.40965]
[1721294179895,0.30088117,3458.8,3458.5,2.89136]
[1721294180024,0.3018176,3459.1,3458.7,2.89125]
[1721294180449,0.3018176,3459.1,3458.8,0.55]
[1721294180647,0.3018176,3459.1,3459.0,2.891]
[1721294180853,0.3018176,3459.1,3459.0,3.441]
[1721294182431,0.3018176,3459.1,3459.0,3.61129034]
[1721294184252,0.3018176,3459.1,3459.0,4.26153537]
[1721294184642,0.30100302,3459.8,3459.0,4.26153537]
[1721294184844,0.30100302,3459.8,3459.1,0.55]
[1721294185255,0.30100302,3459.8,3459.2,0.16941495]
[1721294185469,0.30100302,3459.8,3459.3,0.55]
[1721294185663,2.8905,3459.6,3459.3,0.55]
[1721294185967,2.8905,3459.6,3459.4,0.16936011]
[1721294186174,2.8905,3459.6,3459.5,0.55]
[1721294186742,2.8905,3459.6,3459.5,0.71936011]
[1721294187681,2.8905,3459.6,3459.5,0.55]
[1721294188453,2.8905,3459.6,3459.5,0.71890949]
[1721294189351,2.89042,3459.7,3459.5,0.71890949]
[1721294189784,3.19134302,3459.8,3459.5,0.71890949]
[1721294190282,3.19134302,3459.8,3459.5,0.55]
[1721294190582,3.19134302,3459.8,3459.2,0.55]
[1721294190782,3.19134302,3459.8,3459.3,0.34987224]
[1721294190979,3.19134302,3459.8,3459.4,0.55]
[1721294191689,2.89044,3459.7,3459.4,0.55]
[1721294192071,2.89044,3459.7,3459.1,0.55]
[1721294192277,2.89044,3459.7,3459.5,0.16890949]
[1721294192505,2.89044,3459.7,3459.6,0.71890949]
[1721294192720,2.89044,3459.7,3459.1,0.55]
[1721294192888,2.89051,3459.6,3459.2,0.16890949]
[1721294193082,2.89051,3459.6,3459.3,0.55]
[1721294193390,2.89059,3459.5,3459.4,0.16883733]
[1721294193770,2.89059,3459.5,3459.4,0.55]
[1721294194696,2.89046,3459.7,3459.4,0.55]
[1721294195014,3.19137302,3459.8,3459.5,0.16885465]
[1721294195171,2.89043,3459.7,3459.5,0.16885465]
[1721294195372,2.89043,3459.7,3459.6,0.55]
[1721294195572,0.30100302,3459.8,3459.6,0.71885465]
[1721294195771,0.30100302,3459.8,3459.6,0.55]
[1721294196102,0.30100302,3459.8,3459.3,0.55]
[1721294196297,0.30100302,3459.8,3459.4,0.16885465]
[1721294196501,0.30100302,3459.8,3459.5,0.55]
[1721294196870,10.96410542,3460.0,3459.6,3.05934021]
[1721294197102,10.96410542,3460.0,3459.7,0.55]
[1721294197309,10.96410542,3460.0,3459.7,3.4404]
[1721294197477,10.96410542,3460.0,3459.7,3.91040695]
[1721294197669,10.96410542,3460.0,3459.8,0.16874786]
[1721294197905,10.96410542,3460.0,3459.9,0.55]
[1721294198275,10.96410542,3460.0,3459.8,0.55]
[1721294198476,10.96410542,3460.0,3459.9,0.16874786]
[1721294198712,10.96410542,3460.0,3459.9,0.71874786]
[1721294199401,10.96410542,3460.0,3459.9,1.07966265]
[1721294199806,10.96410542,3460.0,3459.9,0.71874786]
[1721294200404,11.26583628,3460.0,3459.9,0.71874786]
[1721294200577,11.26583628,3460.0,3459.9,0.55]
[1721294200774,11.26583628,3460.0,3459.9,0.71850834]
[1721294200980,14.15600628,3460.0,3459.9,0.71850834]
[1721294201180,15.86061591,3460.0,3459.9,0.55]
[1721294201887,14.15600628,3460.0,3459.9,0.55]
[1721294204912,14.45762658,3460.0,3459.9,0.55]
[1721294205309,17.34779658,3460.0,3459.9,0.55]
[1721294207010,14.45762658,3460.0,3459.9,0.55]
[1721294208386,14.15600628,3460.0,3459.9,0.55]
[1721294208586,11.26583628,3460.0,3459.9,0.55]
[1721294209218,15.86059291,3460.0,3459.9,0.55]
[1721294209606,16.16235343,3460.0,3459.9,0.55]
[1721294210221,19.05252343,3460.0,3459.9,0.55]
[1721294212410,17.3479368,3460.0,3459.9,0.55]
[1721294213235,14.4577668,3460.0,3459.9,0.55]
[1721294213433,14.15600628,3460.0,3459.9,0.55]
[1721294213798,14.15600628,3460.0,3459.8,0.55]
[1721294214135,14.15600628,3460.0,3459.9,0.16367595]
[1721294214335,14.15600628,3460.0,3459.9,0.71367595]
[1721294219436,14.15600628,3460.0,3459.9,0.55]
[1721294220808,18.45195327,3460.0,3459.9,0.55]
[1721294221140,2.89047,3459.7,3459.1,2.89092]
[1721294221308,2.89047,3459.7,3459.2,0.1636615]
[1721294221509,2.89027,3459.9,3459.2,3.0544715]
[1721294221726,0.30175629,3459.7,3459.4,1.965]
[1721294222209,0.30175629,3459.7,3459.5,3.0542315]
[1721294222410,0.30175629,3459.7,3459.6,0.55]
[1721294223043,0.30175629,3459.7,3459.6,0.7136615]
[1721294224539,10.96410542,3460.0,3459.6,0.7136615]
[1721294226255,10.96410542,3460.0,3459.7,2.3744]
[1721294226454,10.96410542,3460.0,3459.8,0.55]
[1721294227054,10.96410542,3460.0,3459.9,0.1636615]
[1721294227260,10.96410542,3460.0,3459.9,0.7136615]
[1721294232958,13.85427542,3460.0,3459.9,0.7136615]
[1721294233271,15.52870896,3460.0,3459.9,0.1636615]
[1721294233451,18.72059779,3460.0,3459.9,0.1636615]
[1721294233649,5.78081,3459.8,3459.0,2.89095]
[1721294233848,2.8904,3459.8,3459.0,2.89095]
[1721294234163,2.89042,3459.7,3459.0,2.89095]
[1721294234357,2.89042,3459.7,3459.0,3.699029]
[1721294234564,2.89042,3459.7,3459.1,0.15821971]
[1721294235365,2.89042,3459.7,3459.2,0.55]
[1721294235553,2.89042,3459.7,3459.3,0.15824279]
[1721294235752,2.89067,3459.4,3458.6,2.89126]
[1721294235955,0.8440563,3459.3,3458.7,0.15824279]
[1721294236160,2.89084,3459.2,3458.7,0.15824279]
[1721294236343,0.84407361,3459.1,3458.7,0.15824279]
[1721294236766,0.84406396,3459.0,3458.7,0.15824279]
[1721294237045,0.84407621,3458.9,3458.7,0.15824279]